fUSD/lending_fUSD_20241230
["ID","MTS","AMOUNT","RATE_DAILY","PERIOD"]
[347180296,1735552256672,-500.0,0.00013972,2]
[347180297,1735552256682,-500.0,0.00013972,2]
[347180298,1735552256692,-151.0,0.00013972,2]
[347180299,1735552256702,-1861.33,0.00013972,2]
[347180300,1735552256711,-151.0,0.00013972,2]
[347180301,1735552256721,-500.0,0.00013972,2]
[347180302,1735552256731,-500.0,0.00013972,2]
[347180303,1735552256741,-552.39,0.00013972,2]
[347180304,1735552256751,-1791.79,0.00013972,2]
[347180305,1735552256760,-1109.89,0.00013972,2]
[347180306,1735552256771,-500.0,0.00013972,2]
[347180307,1735552256781,-500.0,0.00013972,2]
[347180308,1735552256790,-500.0,0.00013972,2]
[347180309,1735552256800,-151.0,0.00013972,2]
[347180310,1735552256810,-500.0,0.00013972,2]
[347180311,1735552256820,-500.0,0.00013972,2]
[347180312,1735552256830,-500.0,0.00013972,2]
[347180313,1735552256839,-500.0,0.00013972,2]
[347180314,1735552256850,-634.32,0.00013972,2]
[347180315,1735552256859,-524.39403297,0.00013972,2]
[347180316,1735552256869,-1182.84,0.00013972,2]
[347180317,1735552256879,-500.0,0.00013972,2]
[347180318,1735552256890,-254.556607,0.00013972,2]
[347180319,1735552256901,-500.0,0.00013972,2]
[347180320,1735552256911,-654.35,0.00013972,2]
[347180321,1735552256921,-502.55,0.00013972,2]
[347180322,1735552256931,-246.192669,0.00013972,2]
[347180323,1735552256941,-500.0,0.00013972,2]
[347180324,1735552256951,-500.0,0.00013972,2]
[347180325,1735552256961,-803.91,0.00013972,2]
[347180326,1735552256971,-791.76,0.00013972,2]
[347180327,1735552256980,-246.192669,0.00013972,2]
[347180328,1735552256990,-1441.95,0.00013972,2]
[347180329,1735552257000,-1058.26,0.00013972,2]
[347180330,1735552257010,-752.49,0.00013972,2]
[347180331,1735552257019,-500.0,0.00013972,2]
[347180332,1735552257029,-500.0,0.00013972,2]
[347180333,1735552257039,-2121.21,0.00013972,2]
[347180334,1735552257049,-590.96,0.00013972,2]
[347180335,1735552257059,-1994.61,0.00013972,2]
[347180336,1735552257068,-597.65,0.00013972,2]
[347180337,1735552257078,-230.248138,0.00013972,2]
[347180338,1735552257088,-1560.13,0.00013972,2]
[347180339,1735552257098,-716.46,0.00013972,2]
[347180340,1735552257108,-505.35886065,0.00013972,2]
[347180341,1735552257119,-1171.47,0.00013972,2]
[347180342,1735552257129,-505.47499865,0.00013972,2]
[347180343,1735552257138,-2232.14,0.00013972,2]
[347180344,1735552257149,-795.84,0.00013972,2]
[347180345,1735552257159,-500.0,0.00013972,2]
[347180346,1735552257168,-665.25,0.00013972,2]
[347180347,1735552257178,-1310.78,0.00013972,2]
[347180348,1735552257187,-924.03,0.00013972,2]
[347180349,1735552257197,-500.0,0.00013972,2]
[347180350,1735552257207,-1112.52,0.00013972,2]
[347180351,1735552257216,-500.0,0.00013972,2]
[347180352,1735552257227,-500.0,0.00013972,2]
[347180353,1735552257236,-500.0,0.00013972,2]
[347180354,1735552257246,-500.0,0.00013972,2]
[347180355,1735552257256,-1261.84,0.00013972,2]
[347180356,1735552257266,-2164.05,0.00013972,2]
[347180357,1735552257277,-500.0,0.00013972,2]
[347180358,1735552257287,-580.08,0.00013972,2]
[347180359,1735552257297,-500.0,0.00013972,2]
[347180360,1735552257307,-1999.34,0.00013972,2]
[347180361,1735552257317,-500.0,0.00013972,2]
[347180362,1735552257327,-924.98,0.00013972,2]
[347180363,1735552257336,-500.0,0.00013972,2]
[347180364,1735552257346,-500.0,0.00013972,2]
[347180365,1735552257356,-1521.67,0.00013972,2]
[347180366,1735552257366,-2323.62,0.00013972,2]
[347180367,1735552257376,-500.0,0.00013972,2]
[347180368,1735552257386,-334.81,0.00013972,2]
[347180369,1735552257396,-500.0,0.00013972,2]
[347180370,1735552257406,-500.0,0.00013972,2]
[347180371,1735552257416,-2143.15,0.00013972,2]
[347180372,1735552257426,-1016.86,0.00013972,2]
[347180373,1735552257436,-500.0,0.00013972,2]
[347180374,1735552257446,-983.22,0.00013972,2]
[347180375,1735552257456,-500.0,0.00013972,2]
[347180376,1735552257466,-500.0,0.00013972,2]
[347180377,1735552257476,-932.13,0.00013972,2]
[347180378,1735552257485,-500.0,0.00013972,2]
[347180379,1735552257495,-500.0,0.00013972,2]
[347180380,1735552257504,-500.0,0.00013972,2]
[347180381,1735552257514,-1612.2,0.00013972,2]
[347180382,1735552257524,-500.0,0.00013972,2]
[347180383,1735552257533,-500.0,0.00013972,2]
[347180384,1735552257543,-500.0,0.00013972,2]
[347180385,1735552257552,-500.0,0.00013972,2]
[347180386,1735552257562,-731.63,0.00013972,2]
[347180387,1735552257571,-500.0,0.00013972,2]
[347180388,1735552257582,-500.0,0.00013972,2]
[347180389,1735552257591,-544.96,0.00013972,2]
[347180390,1735552257601,-501.56323935,0.00013972,2]
[347180391,1735552257610,-502.42893914,0.00013972,2]
[347180392,1735552257620,-1600.69,0.00013972,2]
[347180393,1735552257629,-500.0,0.00013972,2]
[347180394,1735552257639,-1362.19,0.00013972,2]
[347180395,1735552257651,-500.0,0.00013972,2]
[347180396,1735552257661,-874.64,0.00013972,2]
[347180397,1735552257671,-1255.49,0.00013972,2]
[347180398,1735552257681,-500.0,0.00013972,2]
[347180399,1735552257691,-18826.58,0.00013972,2]
[347180400,1735552257701,-3689.13,0.00013972,2]
[347180401,1735552257710,-500.0,0.00013972,2]
[347180402,1735552257720,-151.0,0.00013972,2]
[347180403,1735552257729,-500.0,0.00013972,2]
[347180404,1735552257739,-2272.99,0.00013972,2]
[347180405,1735552257749,-500.0,0.00013972,2]
[347180406,1735552257758,-777.55,0.00013972,2]
[347180407,1735552257768,-1759.77,0.00013972,2]
[347180408,1735552257778,-2026.27,0.00013972,2]
[347180409,1735552257787,-500.0,0.00013972,2]
[347180410,1735552257797,-541.94,0.00013972,2]
[347180411,1735552257806,-1021.81,0.00013972,2]
[347180412,1735552257816,-792.4,0.00013972,2]
[347180413,1735552257826,-633.07,0.00013972,2]
[347180414,1735552257835,-500.0,0.00013972,2]
[347180415,1735552257845,-1515.95,0.00013972,2]
[347180416,1735552257855,-4771.82,0.00013972,2]
[347180417,1735552257865,-1322.39,0.00013972,2]
[347180418,1735552257874,-151.0,0.00013972,2]
[347180419,1735552257884,-500.0,0.00013972,2]
[347180420,1735552257896,-500.0,0.00013972,2]
[347180421,1735552257906,-500.0,0.00013972,2]
[347180422,1735552257916,-1577.83,0.00013972,2]
[347180423,1735552257925,-500.0,0.00013972,2]
[347180424,1735552257935,-641.4,0.00013972,2]
[347180425,1735552257945,-151.0,0.00013972,2]
[347180426,1735552257955,-954.7,0.00013972,2]
[347180427,1735552258136,-500.0,0.00013972,2]
[347180428,1735552258152,-2431.14,0.00013972,2]
[347180429,1735552258162,-500.0,0.00013972,2]
[347180430,1735552258171,-3879.39,0.00013972,2]
[347180431,1735552258181,-500.0,0.00013972,2]
[347180432,1735552258190,-542.13,0.00013972,2]
[347180433,1735552258200,-500.0,0.00013972,2]
[347180434,1735552258209,-3710.46,0.00013972,2]
[347180435,1735552258219,-2970.54,0.00013972,2]
[347180436,1735552258229,-2298.51,0.00013972,2]
[347180437,1735552258238,-500.0,0.00013972,2]
[347180438,1735552258248,-500.0,0.00013972,2]
[347180439,1735552258257,-981.65,0.00013972,2]
[347180440,1735552258266,-554.21,0.00013972,2]
[347180441,1735552258278,-3254.1,0.00013972,2]
[347180442,1735552258287,-626.99,0.00013972,2]
[347180443,1735552258296,-1328.58,0.00013972,2]
[347180444,1735552258305,-500.0,0.00013972,2]
[347180445,1735552258314,-1347.16,0.00013972,2]
[347180446,1735552258325,-500.0,0.00013972,2]
[347180447,1735552258334,-1216.85,0.00013972,2]
[347180448,1735552258343,-500.0,0.00013972,2]
[347180449,1735552258353,-500.0,0.00013972,2]
[347180450,1735552258362,-500.0,0.00013972,2]
[347180451,1735552258371,-619.9,0.00013972,2]
[347180452,1735552258380,-500.0,0.00013972,2]
[347180453,1735552258390,-1313.29,0.00013972,2]
[347180454,1735552258399,-500.0,0.00013972,2]
[347180455,1735552258409,-1488.82,0.00013972,2]
[347180456,1735552258418,-1248.52,0.00013972,2]
[347180457,1735552258427,-500.0,0.00013972,2]
[347180458,1735552258436,-500.0,0.00013972,2]
[347180459,1735552258445,-500.0,0.00013972,2]
[347180460,1735552258454,-500.0,0.00013972,2]
[347180461,1735552258463,-500.0,0.00013972,2]
[347180462,1735552258472,-500.0,0.00013972,2]
[347180463,1735552258481,-694.01,0.00013972,2]
[347180464,1735552258490,-500.0,0.00013972,2]
[347180465,1735552258499,-500.0,0.00013972,2]
[347180466,1735552258508,-7660.28,0.00013972,2]
[347180467,1735552258516,-2680.43,0.00013972,2]
[347180468,1735552258526,-424.829885,0.00013972,2]
[347180469,1735552258535,-1063.64,0.00013972,2]
[347180470,1735552258544,-1021.08,0.00013972,2]
[347180471,1735552258554,-500.0,0.00013972,2]
[347180472,1735552258563,-13659.08,0.00013972,2]
[347180473,1735552258571,-1770.28,0.00013972,2]
[347180474,1735552258582,-670.0,0.00013972,2]
[347180475,1735552258591,-2872.79,0.00013972,2]
[347180476,1735552258599,-500.0,0.00013972,2]
[347180477,1735552258608,-527.29,0.00013972,2]
[347180478,1735552258617,-3197.56,0.00013972,2]
[347180479,1735552258626,-500.0,0.00013972,2]
[347180480,1735552258635,-583.32,0.00013972,2]
[347180481,1735552258645,-404.940986,0.00013972,2]
[347180482,1735552258655,-422.403454,0.00013972,2]
[347180483,1735552258664,-517.12409724,0.00013972,2]
[347180484,1735552258672,-1494.44,0.00013972,2]
[347180485,1735552258681,-500.0,0.00013972,2]
[347180486,1735552258690,-815.7,0.00013972,2]
[347180487,1735552258700,-7083.04,0.00013972,2]
[347180488,1735552258708,-1013.19,0.00013972,2]
[347180489,1735552258718,-500.0,0.00013972,2]
[347180490,1735552258727,-777.6,0.00013972,2]
[347180491,1735552258735,-1702.16,0.00013972,2]
[347180492,1735552258745,-422.403454,0.00013972,2]
[347180493,1735552258754,-2147.24,0.00013972,2]
[347180494,1735552258763,-1471.24,0.00013972,2]
[347180495,1735552258772,-831.43,0.00013972,2]
[347180496,1735552258781,-2716.97,0.00013972,2]
[347180497,1735552258790,-500.0,0.00013972,2]
[347180498,1735552258799,-3844.89,0.00013972,2]
[347180499,1735552258808,-1570.61,0.00013972,2]
[347180500,1735552258817,-500.0,0.00013972,2]
[347180501,1735552258826,-504.38102313,0.00013972,2]
[347180502,1735552258834,-508.30265656,0.00013972,2]
[347180503,1735552258843,-402.421159,0.00013972,2]
[347180504,1735552258852,-4981.24,0.00013972,2]
[347180505,1735552258861,-500.0,0.00013972,2]
[347180506,1735552258871,-2903.49,0.00013972,2]
[347180507,1735552258880,-853.14,0.00013972,2]
[347180508,1735552258890,-1690.41,0.00013972,2]
[347180509,1735552258900,-386.04148,0.00013972,2]
[347180510,1735552258910,-500.0,0.00013972,2]
[347180511,1735552258920,-500.0,0.00013972,2]
[347180512,1735552258929,-500.0,0.00013972,2]
[347180513,1735552258938,-2357.44,0.00013972,2]
[347180514,1735552258948,-1176.53,0.00013972,2]
[347180515,1735552258957,-819.39,0.00013972,2]
[347180516,1735552258966,-500.0,0.00013972,2]
[347180517,1735552258975,-500.0,0.00013972,2]
[347180518,1735552258984,-552.82,0.00013972,2]
[347180519,1735552258995,-500.0,0.00013972,2]
[347180520,1735552259004,-500.0,0.00013972,2]
[347180521,1735552259014,-1101.99,0.00013972,2]
[347180522,1735552259023,-1880.77,0.00013972,2]
[347180523,1735552259033,-18777.92,0.00013972,2]
[347180524,1735552259043,-500.0,0.00013972,2]
[347180525,1735552259053,-500.0,0.00013972,2]
[347180526,1735552259062,-500.0,0.00013972,2]
[347180527,1735552259071,-500.0,0.00013972,2]
[347180528,1735552259081,-8239.52,0.00013972,2]
[347180529,1735552259090,-1858.8,0.00013972,2]
[347180530,1735552259099,-797.54,0.00013972,2]
[347180531,1735552259109,-500.0,0.00013972,2]
[347180532,1735552259118,-500.0,0.00013972,2]
[347180533,1735552259127,-3991.74,0.00013972,2]
[347180534,1735552259136,-820.69,0.00013972,2]
[347180535,1735552259146,-1412.45,0.00013972,2]
[347180536,1735552259156,-898.75,0.00013972,2]
[347180537,1735552259166,-500.0,0.00013972,2]
[347180538,1735552259176,-628.952486,0.00013972,2]
[347180539,1735552259185,-837.46,0.00013972,2]
[347180540,1735552259195,-500.0,0.00013972,2]
[347180541,1735552259205,-6942.54,0.00013972,2]
[347180542,1735552259214,-500.0,0.00013972,2]
[347180543,1735552259223,-503.35520827,0.00013972,2]
[347180544,1735552259233,-3611.85,0.00013972,2]
[347180545,1735552259242,-628.952486,0.00013972,2]
[347180546,1735552259251,-11862.16,0.00013972,2]
[347180547,1735552259261,-500.0,0.00013972,2]
[347180548,1735552259270,-1704.04,0.00013972,2]
[347180549,1735552259282,-2011.2,0.00013972,2]
[347180550,1735552259291,-1598.61,0.00013972,2]
[347180551,1735552259300,-500.0,0.00013972,2]
[347180552,1735552259310,-500.0,0.00013972,2]
[347180553,1735552259319,-500.0,0.00013972,2]
[347180554,1735552259330,-500.0,0.00013972,2]
[347180555,1735552259340,-2894.19,0.00013972,2]
[347180556,1735552259349,-387.055203,0.00013972,2]
[347180557,1735552259359,-500.0,0.00013972,2]
[347180558,1735552259368,-500.0,0.00013972,2]
[347180559,1735552259378,-908.23,0.00013972,2]
[347180560,1735552259387,-1600.24,0.00013972,2]
[347180561,1735552259397,-395.085733,0.00013972,2]
[347180562,1735552259407,-1841.21,0.00013972,2]
[347180563,1735552259418,-1287.85,0.00013972,2]
[347180564,1735552259427,-500.0,0.00013972,2]
[347180565,1735552259437,-414.19171758,0.00013972,2]
[347180566,1735552259446,-500.0,0.00013972,2]
[347180567,1735552259456,-837.33,0.00013972,2]
[347180568,1735552259465,-1763.26,0.00013972,2]
[347180569,1735552259474,-500.0,0.00013972,2]
[347180570,1735552259484,-1651.88,0.00013972,2]
[347180571,1735552259493,-500.0,0.00013972,2]
[347180572,1735552259503,-502.60032811,0.00013972,2]
[347180573,1735552259513,-500.0,0.00013972,2]
[347180574,1735552259522,-500.0,0.00013972,2]
[347180575,1735552259531,-1820.87,0.00013972,2]
[347180576,1735552259540,-919.56,0.00013972,2]
[347180577,1735552259550,-500.0,0.00013972,2]
[347180578,1735552259559,-1283.04,0.00013972,2]
[347180579,1735552259568,-3306.36,0.00013972,2]
[347180580,1735552259578,-917.58,0.00013972,2]
[347180581,1735552259587,-3487.21,0.00013972,2]
[347180582,1735552259597,-2668.33,0.00013972,2]
[347180583,1735552259606,-500.0,0.00013972,2]
[347180584,1735552259615,-500.0,0.00013972,2]
[347180585,1735552259624,-5058.68,0.00013972,2]
[347180586,1735552259634,-386.833666,0.00013972,2]
[347180587,1735552259644,-500.0,0.00013972,2]
[347180588,1735552259654,-1232.56,0.00013972,2]
[347180589,1735552259665,-845.12,0.00013972,2]
[347180590,1735552259675,-151.0,0.00013972,2]
[347180591,1735552259685,-8100.53,0.00013972,2]
[347180592,1735552259694,-401.622732,0.00013972,2]
[347180593,1735552259703,-500.0,0.00013972,2]
[347180594,1735552259713,-21668.75,0.00013972,2]
[347180595,1735552259722,-500.0,0.00013972,2]
[347180596,1735552259731,-500.0,0.00013972,2]
[347180597,1735552259741,-871.88,0.00013972,2]
[347180598,1735552259750,-1058.15,0.00013972,2]
[347180599,1735552259759,-188.59499,0.00013972,2]
[347180600,1735552259768,-1264.96,0.00013972,2]
[347180601,1735552259777,-1551.76,0.00013972,2]
[347180602,1735552259787,-3186.67,0.00013972,2]
[347180603,1735552259796,-188.59499,0.00013972,2]
[347180604,1735552259805,-500.0,0.00013972,2]
[347180605,1735552259815,-2926.43,0.00013972,2]
[347180606,1735552259824,-2031.15,0.00013972,2]
[347180607,1735552259833,-500.0,0.00013972,2]
[347180608,1735552259843,-796.66,0.00013972,2]
[347180609,1735552259852,-500.0,0.00013972,2]
[347180610,1735552259862,-417.573932,0.00013972,2]
[347180611,1735552259873,-500.0,0.00013972,2]
[347180612,1735552259882,-1858.56,0.00013972,2]
[347180613,1735552259893,-500.0,0.00013972,2]
[347180614,1735552259905,-1755.63,0.00013972,2]
[347180615,1735552259914,-2561.84,0.00013972,2]
[347180616,1735552259924,-1000.28,0.00013972,2]
[347180617,1735552259934,-500.0,0.00013972,2]
[347180618,1735552259943,-1878.63,0.00013972,2]
[347180619,1735552259952,-1717.16,0.00013972,2]
[347180620,1735552259962,-500.0,0.00013972,2]
[347180621,1735552259971,-500.0,0.00013972,2]
[347180622,1735552259980,-430.655156,0.00013972,2]
[347180623,1735552259990,-3919.91,0.00013972,2]
[347180624,1735552259999,-5679.89,0.00013972,2]
[347180625,1735552260008,-517.92502784,0.00013972,2]
[347180626,1735552260018,-2032.99,0.00013972,2]
[347180627,1735552260027,-3394.41,0.00013972,2]
[347180628,1735552260037,-500.0,0.00013972,2]
[347180629,1735552260047,-1874.92,0.00013972,2]
[347180630,1735552260058,-2341.84,0.00013972,2]
[347180631,1735552260068,-500.0,0.00013972,2]
[347180632,1735552260078,-3196.75,0.00013972,2]
[347180633,1735552260087,-500.0,0.00013972,7]
[347180634,1735552260097,-500.0,0.00013972,2]
[347180635,1735552260107,-508.43705841,0.00013972,2]
[347180636,1735552260116,-2413.93,0.00013972,2]
[347180637,1735552260125,-500.0,0.00013972,2]
[347180638,1735552260134,-500.0,0.00013972,2]
[347180639,1735552260143,-1854.16,0.00013972,2]
[347180640,1735552260154,-845.35,0.00013972,2]
[347180641,1735552260164,-656.44,0.00013972,2]
[347180642,1735552260174,-751.7,0.00013972,2]
[347180643,1735552260183,-3234.98,0.00013972,2]
[347180644,1735552260193,-2307.43,0.00013972,2]
[347180645,1735552260203,-1417.15,0.00013972,2]
[347180646,1735552260212,-463.539499,0.00013972,2]
[347180647,1735552260223,-500.0,0.00013972,2]
[347180648,1735552260232,-508.87325876,0.00013972,2]
[347180649,1735552260242,-1041.83,0.00013972,2]
[347180650,1735552260251,-1581.470257,0.00013972,2]
[347180651,1735552260261,-470.855587,0.00013972,2]
[347180652,1735552260272,-500.0,0.00013972,2]
[347180653,1735552260286,-500.0,0.00013972,2]
[347180654,1735552260296,-2409.94,0.00013972,2]
[347180655,1735552260306,-1154.95,0.00013972,2]
[347180656,1735552260316,-15022.22,0.00013972,2]
[347180657,1735552260326,-500.0,0.00013972,2]
[347180658,1735552260336,-510.49516762,0.00013972,2]
[347180659,1735552260346,-4488.42,0.00013972,2]
[347180660,1735552260356,-1581.470257,0.00013972,2]
[347180661,1735552260366,-500.0,0.00013972,2]
[347180662,1735552260375,-500.0,0.00013972,2]
[347180663,1735552260385,-502.11309675,0.00013972,2]
[347180664,1735552260395,-1854.12,0.00013972,2]
[347180665,1735552260404,-739.72,0.00013972,2]
[347180666,1735552260414,-16726.73,0.00013972,2]
[347180667,1735552260424,-1878.22,0.00013972,2]
[347180668,1735552260434,-500.0,0.00013972,2]
[347180669,1735552260444,-1609.46,0.00013972,2]
[347180670,1735552260453,-500.0,0.00013972,2]
[347180671,1735552260463,-2699.27,0.00013972,2]
[347180672,1735552260473,-320.94,0.00013972,2]
[347180673,1735552260483,-1952.7,0.00013972,2]
[347180674,1735552260492,-4306.83,0.00013972,2]
[347180675,1735552260502,-498.562144,0.00013972,2]
[347180676,1735552260511,-150.86,0.00013972,2]
[347180677,1735552260520,-498.439895,0.00013972,2]
[347180678,1735552260530,-1640.78,0.00013972,2]
[347180679,1735552260539,-3364.44,0.00013972,2]
[347180680,1735552260549,-790.37,0.00013972,2]
[347180681,1735552260558,-629.06,0.00013972,2]
[347180682,1735552260567,-500.0,0.00013972,2]
[347180683,1735552260577,-500.0,0.00013972,2]
[347180684,1735552260586,-2659.21,0.00013972,2]
[347180685,1735552260596,-4278.69,0.00013972,2]
[347180686,1735552260605,-500.0,0.00013972,2]
[347180687,1735552260615,-1400.23,0.00013972,2]
[347180688,1735552260624,-500.0,0.00013972,2]
[347180689,1735552260633,-513.01745802,0.00013972,2]
[347180690,1735552260643,-558.98,0.00013972,2]
[347180691,1735552260653,-500.0,0.00013972,2]
[347180692,1735552260662,-511.82,0.00013972,2]
[347180693,1735552260674,-1539.27,0.00013972,2]
[347180694,1735552260683,-2419.98,0.00013972,2]
[347180695,1735552260692,-759.46,0.00013972,2]
[347180696,1735552260701,-1776.79,0.00013972,2]
[347180697,1735552260710,-500.0,0.00013972,2]
[347180698,1735552260720,-500.0,0.00013972,2]
[347180699,1735552260729,-910.57,0.00013972,2]
[347180700,1735552260738,-4974.89,0.00013972,2]
[347180701,1735552260747,-10777.63,0.00013972,2]
[347180702,1735552260757,-503.85164468,0.00013972,2]
[347180703,1735552260766,-251.736571,0.00013972,2]
[347180704,1735552260775,-1011.0,0.00013972,2]
[347180705,1735552260784,-500.0,0.00013972,2]
[347180706,1735552260793,-1335.26,0.00013972,2]
[347180707,1735552260803,-500.0,0.00013972,2]
[347180708,1735552260812,-500.0,0.00013972,2]
[347180709,1735552260821,-582.35,0.00013972,2]
[347180710,1735552260831,-510.8854313,0.00013972,2]
[347180711,1735552260840,-251.736571,0.00013972,2]
[347180712,1735552260849,-5289.05,0.00013972,2]
[347180713,1735552260859,-500.0,0.00013972,2]
[347180714,1735552260868,-505.90653552,0.00013972,2]
[347180715,1735552260877,-500.0,0.00013972,2]
[347180716,1735552260887,-3774.66,0.00013972,2]
[347180717,1735552260896,-510.430197,0.00013972,2]
[347180718,1735552260907,-1288.01,0.00013972,2]
[347180719,1735552260917,-4346.03,0.00013972,2]
[347180720,1735552260926,-1826.7,0.00013972,2]
[347180721,1735552260935,-500.0,0.00013972,2]
[347180722,1735552260945,-500.0,0.00013972,2]
[347180723,1735552260954,-500.0,0.00013972,2]
[347180724,1735552260963,-4338.58,0.00013972,2]
[347180725,1735552260972,-1887.47,0.00013972,2]
[347180726,1735552260981,-500.0,0.00013972,2]
[347180727,1735552260991,-500.0,0.00013972,2]
[347180728,1735552261000,-502.763428,0.00013972,2]
[347180729,1735552261009,-500.0,0.00013972,2]
[347180730,1735552261018,-1107.7,0.00013972,2]
[347180731,1735552261027,-500.0,0.00013972,2]
[347180732,1735552261036,-2595.54,0.00013972,2]
[347180733,1735552261046,-500.0,0.00013972,2]
[347180734,1735552261055,-24751.29,0.00013972,2]
[347180735,1735552261064,-500.0,0.00013972,2]
[347180736,1735552261074,-2441.89,0.00013972,2]
[347180737,1735552261082,-500.0,0.00013972,2]
[347180738,1735552261092,-500.0,0.00013972,2]
[347180739,1735552261101,-500.0,0.00013972,2]
[347180740,1735552261281,-1839.39,0.00013972,2]
[347180741,1735552261291,-981.27,0.00013972,2]
[347180742,1735552261301,-500.0,0.00013972,2]
[347180743,1735552261310,-2012.43,0.00013972,2]
[347180744,1735552261320,-500.0,0.00013972,2]
[347180745,1735552261329,-506.32173757,0.00013972,2]
[347180746,1735552261338,-500.0,0.00013972,2]
[347180747,1735552261347,-1897.79,0.00013972,2]
[347180748,1735552261356,-223.103362,0.00013972,2]
[347180749,1735552261365,-500.0,0.00013972,2]
[347180750,1735552261375,-555.86,0.00013972,2]
[347180751,1735552261384,-502.280573,0.00013972,2]
[347180752,1735552261394,-500.0,0.00013972,2]
[347180753,1735552261405,-500.0,0.00013972,2]
[347180754,1735552261415,-488.630338,0.00013972,2]
[347180755,1735552261425,-500.0,0.00013972,2]
[347180756,1735552261435,-500.0,0.00013972,2]
[347180757,1735552261444,-3005.23,0.00013972,2]
[347180758,1735552261454,-223.103362,0.00013972,2]
[347180759,1735552261463,-559.64,0.00013972,2]
[347180760,1735552261472,-500.0,0.00013972,2]
[347180761,1735552261481,-4166.47,0.00013972,2]
[347180762,1735552261490,-1998.93,0.00013972,2]
[347180763,1735552261499,-500.0,0.00013972,2]
[347180764,1735552261508,-500.0,0.00013972,2]
[347180765,1735552261517,-2269.54,0.00013972,2]
[347180766,1735552261526,-500.0,0.00013972,2]
[347180767,1735552261535,-4762.33,0.00013972,2]
[347180768,1735552261545,-2740.88,0.00013972,2]
[347180769,1735552261554,-2440.94,0.00013972,2]
[347180770,1735552261563,-1799.49,0.00013972,2]
[347180771,1735552261572,-517.17,0.00013972,2]
[347180772,1735552261581,-2860.3,0.00013972,2]
[347180773,1735552261591,-1852.02,0.00013972,2]
[347180774,1735552261600,-510.54223668,0.00013972,2]
[347180775,1735552261609,-1288.76,0.00013972,2]
[347180776,1735552261619,-500.0,0.00013972,2]
[347180777,1735552261629,-500.0,0.00013972,2]
[347180778,1735552261638,-500.0,0.00013972,2]
[347180779,1735552261647,-500.0,0.00013972,2]
[347180780,1735552261657,-1285.75,0.00013972,2]
[347180781,1735552261666,-3532.63,0.00013972,2]
[347180782,1735552261675,-1494.07,0.00013972,2]
[347180783,1735552261684,-482.638734,0.00013972,2]
[347180784,1735552261694,-516.13,0.00013972,2]
[347180785,1735552261703,-465.520485,0.00013972,2]
[347180786,1735552261712,-3736.29,0.00013972,2]
[347180787,1735552261722,-500.0,0.00013972,2]
[347180788,1735552261732,-2998.68,0.00013972,2]
[347180789,1735552261741,-778.74913,0.00013972,2]
[347180790,1735552261751,-1327.15,0.00013972,2]
[347180791,1735552261760,-1448.12,0.00013972,2]
[347180792,1735552261770,-151.0,0.00013972,2]
[347180793,1735552261779,-3179.51271205,0.00013984,2]
[347180794,1735552261790,-666.0,0.00013999,2]
[347180795,1735552261799,-666.0,0.00013999,2]